bitfinex-derivatives/quotes_BTCF0:USTF0_20241013
["timestamp","ask_amount","ask_price","bid_price","bid_amount"]
[1728831097632,0.0004,62394.0,62393.0,0.080157]
[1728831097936,0.0004,62394.0,62393.0,0.29507049]
[1728831098238,0.0004,62401.0,62400.0,0.080148]
[1728831098423,0.0004,62401.0,62400.0,0.26578824]
[1728831098622,0.0004,62401.0,62400.0,0.16008654]
[1728831099737,0.0004,62401.0,62400.0,0.080148]
[1728831100128,0.0014,62401.0,62400.0,0.16108654]
[1728831100528,0.0014,62401.0,62400.0,0.081148]
[1728831101124,0.0024,62401.0,62400.0,0.18685655]
[1728831101329,0.0024,62401.0,62400.0,0.19988859]
[1728831102230,0.0004,62404.0,62403.0,0.080144]
[1728831102435,0.0004,62404.0,62403.0,0.36888459]
[1728831102632,0.0004,62404.0,62403.0,0.46481084]
[1728831102833,0.0004,62404.0,62403.0,0.36888459]
[1728831103427,0.0004,62404.0,62403.0,0.49878459]
[1728831103741,0.0004,62404.0,62403.0,0.39407604]
[1728831106042,0.0004,62404.0,62403.0,0.39407492]
[1728831106233,0.0004,62404.0,62403.0,0.31393092]
[1728831106433,0.080543,62404.0,62403.0,0.31393092]
[1728831106947,0.080543,62404.0,62403.0,0.39407492]
[1728831108032,0.080543,62404.0,62403.0,0.14393092]
[1728831108637,0.080543,62404.0,62403.0,0.1309]
[1728831110546,0.080543,62404.0,62403.0,0.381044]
[1728831110746,0.080543,62404.0,62403.0,0.39407603]
[1728831112249,0.080543,62404.0,62403.0,0.45927603]
[1728831116047,0.080543,62404.0,62403.0,0.45426334]
[1728831116347,0.080543,62404.0,62403.0,0.45927543]
[1728831116550,0.080543,62404.0,62403.0,0.45927541]
[1728831117342,0.080543,62404.0,62403.0,0.14553141]
[1728831117541,0.080543,62404.0,62403.0,0.0662]
[1728831117746,0.080543,62404.0,62403.0,0.001]
[1728831122749,0.10928539,62404.0,62403.0,0.001]
[1728831123452,0.10928539,62404.0,62400.0,0.0004]
[1728831123453,0.080146,62401.0,62400.0,0.0004]
[1728831123650,0.610946,62401.0,62400.0,0.0004]
[1728831123849,0.611346,62401.0,62400.0,0.0004]
[1728831125149,0.611346,62401.0,62400.0,0.0024]
[1728831125150,0.612346,62401.0,62400.0,0.0024]
[1728831125474,0.613346,62401.0,62400.0,0.0024]
[1728831126352,0.082546,62401.0,62400.0,0.0024]
[1728831127157,0.252546,62401.0,62400.0,0.0024]
[1728831127368,0.613346,62401.0,62400.0,0.0024]
[1728831131268,0.613346,62401.0,62393.0,0.0004]
[1728831131469,0.611355,62394.0,62393.0,0.0004]
[1728831131670,0.080158,62392.0,62391.0,0.0012]
[1728831131963,0.08017,62383.0,62382.0,0.07992817]
[1728831132168,0.080171,62382.0,62381.0,0.07992817]
[1728831132358,0.080571,62382.0,62381.0,0.18654851]
[1728831132665,0.080172,62381.0,62380.0,0.07992817]
[1728831132979,0.080572,62381.0,62380.0,0.1864611]
[1728831133358,0.080572,62381.0,62380.0,0.19949797]
[1728831133556,0.080572,62381.0,62380.0,0.01303687]
[1728831134064,0.0004,62381.0,62380.0,0.01303687]
[1728831134262,0.0004,62381.0,62380.0,0.26320987]
[1728831134562,0.080572,62381.0,62380.0,0.26320987]
[1728831134762,0.081572,62381.0,62380.0,0.26320987]
[1728831134958,0.0014,62381.0,62380.0,0.26320987]
[1728831135466,0.082572,62381.0,62380.0,0.26320987]
[1728831137063,0.0024,62381.0,62380.0,0.26320969]
[1728831138563,0.0024,62381.0,62380.0,0.74412969]
[1728831138769,0.0004,62392.0,62382.0,0.0004]
[1728831139072,0.0004,62392.0,62391.0,0.250159]
[1728831139365,0.0004,62392.0,62391.0,0.080159]
[1728831139571,0.0004,62392.0,62382.0,0.0004]
[1728831139572,0.08017,62383.0,62382.0,0.0004]
[1728831139760,0.25057,62383.0,62382.0,0.0004]
[1728831141760,0.25157,62383.0,62382.0,0.0004]
[1728831141960,0.25257,62383.0,62382.0,0.0004]
[1728831142365,0.61337,62383.0,62382.0,0.0004]
[1728831143161,0.64296887,62383.0,62382.0,0.0004]
[1728831143963,0.64296887,62383.0,62378.0,0.0004]
[1728831143964,0.48092,62382.0,62378.0,0.0004]
[1728831144156,0.610975,62379.0,62378.0,0.0004]
[1728831144363,0.611375,62379.0,62378.0,0.0004]
[1728831144561,1.692295,62379.0,62378.0,0.0004]
[1728831145057,0.611375,62379.0,62378.0,0.0004]
[1728831145457,0.442375,62379.0,62378.0,0.0004]
[1728831145662,0.612375,62379.0,62378.0,0.0004]
[1728831146169,1.694295,62379.0,62374.0,0.0004]
[1728831146474,0.25058,62375.0,62374.0,0.0004]
[1728831147771,0.25158,62375.0,62374.0,0.0004]
[1728831148676,0.25258,62375.0,62374.0,0.0004]
[1728831151363,0.25258,62375.0,62374.0,0.06430706]
[1728831151675,0.25258,62375.0,62374.0,0.0004]
[1728831152678,0.08258,62375.0,62374.0,0.0004]
[1728831153874,0.08258,62375.0,62374.0,0.080581]
[1728831154073,0.0024,62375.0,62374.0,0.16044057]
[1728831154373,0.0004,62379.0,62378.0,0.080176]
[1728831154573,0.0004,62383.0,62382.0,0.080171]
[1728831154776,0.0004,62383.0,62382.0,0.36193109]
[1728831155171,0.0004,62383.0,62382.0,0.19193109]
[1728831155367,0.25057,62383.0,62382.0,0.18631906]
[1728831155569,0.25057,62383.0,62382.0,0.04795138]
[1728831155769,0.080171,62382.0,62378.0,0.0004]
[1728831155969,0.5312,62379.0,62378.0,0.0004]
[1728831156173,0.611375,62379.0,62378.0,0.0004]
[1728831157079,0.613375,62379.0,62378.0,0.0014]
[1728831164388,1.094295,62379.0,62378.0,0.0014]
[1728831164890,0.613375,62379.0,62378.0,0.0014]
[1728831166082,0.613375,62379.0,62378.0,0.06544866]
[1728831168586,0.613375,62379.0,62378.0,0.0014]
[1728831169184,0.613375,62379.0,62374.0,0.0008]
[1728831169185,1.864295,62379.0,62374.0,0.0008]
[1728831169384,0.080194,62364.0,62363.0,0.09597963]
[1728831169690,0.080194,62364.0,62363.0,0.107173]
[1728831169691,0.611394,62364.0,62363.0,0.107173]
[1728831170581,0.080197,62362.0,62360.0,0.080199]
[1728831170784,0.080197,62362.0,62349.0,0.217293]
[1728831170785,0.5104,62361.0,62347.0,0.00068514]
[1728831170982,0.080218,62345.0,62334.0,0.00084]
[1728831171193,0.972231,62335.0,62334.0,0.00084]
[1728831171490,1.453511,62335.0,62334.0,0.04797037]
[1728831171686,2.053511,62335.0,62334.0,0.04797037]
[1728831171985,0.972231,62335.0,62334.0,0.10467761]
[1728831172187,0.972231,62335.0,62326.0,0.0664]
[1728831172188,1.142231,62335.0,62330.0,0.04797037]
[1728831172395,0.080238,62330.0,62327.0,0.04797037]
[1728831172578,0.080238,62330.0,62326.0,0.17107761]
[1728831172579,0.080238,62330.0,62329.0,0.10467761]
[1728831172784,0.441038,62330.0,62329.0,0.10467761]
[1728831173579,0.442038,62330.0,62329.0,0.10467761]
[1728831173992,0.612038,62330.0,62329.0,0.10467761]
[1728831174185,0.131438,62330.0,62329.0,0.27467761]
[1728831174385,0.212676,62330.0,62329.0,0.10467761]
[1728831174896,0.213676,62330.0,62329.0,0.10467761]
[1728831175296,0.002,62330.0,62329.0,0.27467761]
[1728831175498,0.002,62330.0,62329.0,0.35491661]
[1728831175890,0.002,62330.0,62329.0,0.27467761]
[1728831176197,0.082238,62330.0,62329.0,0.27467761]
[1728831177790,0.0004,62335.0,62331.0,0.080236]
[1728831177990,0.0004,62335.0,62334.0,0.10467761]
[1728831178194,0.080631,62335.0,62334.0,0.10467761]
[1728831178497,0.441431,62335.0,62334.0,0.09767761]
[1728831178992,0.442431,62335.0,62334.0,0.09767761]
[1728831179493,0.443431,62335.0,62334.0,0.09767761]
[1728831180794,0.443431,62335.0,62334.0,0.09867761]
[1728831182199,0.443431,62335.0,62334.0,0.17891061]
[1728831182393,0.002,62335.0,62334.0,0.34891061]
[1728831182601,0.080227,62339.0,62337.0,0.080228]
[1728831182792,0.080227,62339.0,62338.0,0.09767761]
[1728831183600,1.36180001,62340.0,62338.0,0.09767761]
[1728831183799,1.36180001,62340.0,62339.0,0.09767761]
[1728831183800,1.44202501,62340.0,62339.0,0.09767761]
[1728831184103,1.441025,62340.0,62339.0,0.17790361]
[1728831184297,1.3608,62340.0,62339.0,0.17790361]
[1728831184691,1.0,62340.0,62339.0,0.17790361]
[1728831185202,1.081225,62340.0,62339.0,0.09967761]
[1728831186307,1.081225,62340.0,62339.0,0.17990361]
[1728831186308,1.082225,62340.0,62339.0,0.17990361]
[1728831186802,1.082225,62340.0,62339.0,0.09967761]
[1728831189903,0.080231,62335.0,62334.0,0.0004]
[1728831190102,0.611431,62335.0,62334.0,0.0004]
[1728831190303,1.692711,62335.0,62334.0,0.0004]
[1728831190998,1.693711,62335.0,62334.0,0.0024]
[1728831191504,1.694711,62335.0,62334.0,0.0024]
[1728831191895,0.080236,62331.0,62322.0,0.0686]
[1728831192103,0.250247,62323.0,62322.0,0.0686]
[1728831192298,0.250647,62323.0,62322.0,0.0686]
[1728831193398,0.250647,62323.0,62322.0,0.0536]
[1728831194505,0.080647,62323.0,62322.0,0.15127761]
[1728831194808,0.080647,62323.0,62322.0,0.32127761]
[1728831194809,0.0004,62323.0,62322.0,0.32127761]
[1728831195008,0.0014,62323.0,62322.0,0.40152561]
[1728831195200,0.0014,62323.0,62322.0,0.23152561]
[1728831195897,0.081647,62323.0,62322.0,0.23152561]
[1728831196903,0.0014,62323.0,62322.0,0.23152561]
[1728831197096,0.3608,62325.0,62324.0,0.080245]
[1728831197304,0.3608,62325.0,62324.0,0.34792261]
[1728831198407,0.3618,62325.0,62324.0,0.34792261]
[1728831198610,0.3618,62325.0,62324.0,0.39589298]
[1728831199503,0.3618,62325.0,62324.0,0.34792261]
[1728831201609,0.001,62325.0,62324.0,0.34792261]
[1728831201809,0.001,62325.0,62324.0,0.53024507]
[1728831202007,0.001,62325.0,62324.0,0.45031307]
[1728831203213,0.001,62325.0,62324.0,0.57234169]
[1728831203809,0.080227,62338.0,62337.0,0.0897704]
[1728831204204,1.0,62340.0,62338.0,0.080227]
[1728831204405,1.081105,62340.0,62338.0,0.2375974]
[1728831205011,1.081105,62340.0,62338.0,0.31768138]
[1728831205604,0.441026,62339.0,62338.0,0.2375974]
[1728831205804,0.3608,62339.0,62338.0,0.2375974]
[1728831206010,0.441026,62339.0,62338.0,0.2375974]
[1728831207210,0.441026,62339.0,62338.0,0.2385974]
[1728831207211,0.442026,62339.0,62338.0,0.2385974]
[1728831208604,0.442026,62339.0,62338.0,0.1583704]
[1728831208811,1.523266,62339.0,62338.0,0.0686]
[1728831209004,0.080229,62337.0,62336.0,0.04804138]
[1728831209219,0.080231,62335.0,62334.0,0.0004]
[1728831209420,0.080631,62335.0,62334.0,0.0004]
[1728831210117,0.250236,62331.0,62330.0,0.0004]
[1728831210320,0.611436,62331.0,62330.0,0.0004]
[1728831210722,1.211436,62331.0,62330.0,0.0004]
[1728831210919,0.080239,62329.0,62322.0,0.0004]
[1728831211124,0.080239,62329.0,62308.0,0.4972]
[1728831211125,0.080248,62322.0,62316.0,0.08008398]
[1728831211318,0.080248,62322.0,62313.0,0.08008398]
[1728831211319,0.080648,62322.0,62313.0,0.08008398]
[1728831211619,0.219048,62322.0,62312.0,0.08008398]
[1728831211820,0.219048,62322.0,62311.0,0.08008398]
[1728831212218,0.0004,62322.0,62321.0,0.3454194]
[1728831212816,0.0004,62322.0,62321.0,0.1754194]
[1728831213718,0.0014,62322.0,62321.0,0.1754194]
[1728831218227,0.081648,62322.0,62321.0,0.1754194]
[1728831218527,0.0014,62322.0,62321.0,0.1754194]
[1728831219131,0.0014,62322.0,62321.0,0.3454194]
[1728831219428,0.081648,62322.0,62321.0,0.2651704]
[1728831222128,0.0014,62322.0,62321.0,0.3454194]
[1728831224733,0.0014,62322.0,62321.0,0.35043819]
[1728831229537,0.0014,62322.0,62321.0,0.43052217]
[1728831230336,0.0014,62322.0,62321.0,0.81380175]
[1728831230550,0.0014,62322.0,62321.0,0.89384914]
[1728831230726,0.0014,62322.0,62321.0,0.81380176]
[1728831230935,0.0014,62322.0,62321.0,0.72403136]
[1728831231232,0.0014,62322.0,62321.0,0.81380176]
[1728831232035,0.0014,62322.0,62321.0,0.71123812]
[1728831232433,0.0004,62331.0,62330.0,0.080238]
[1728831232628,0.0004,62331.0,62330.0,0.1700084]
[1728831233237,0.0004,62331.0,62330.0,0.17502632]
[1728831233831,1.3608,62340.0,62330.0,0.15365675]
[1728831233832,0.9110296,62340.0,62330.0,0.15365675]
[1728831234036,0.9110296,62340.0,62339.0,0.611026]
[1728831234227,0.9110296,62340.0,62339.0,1.211026]
[1728831234428,0.36680973,62340.0,62339.0,2.05808323]
[1728831234632,0.05360973,62340.0,62339.0,2.05808323]
[1728831234927,0.05360973,62340.0,62339.0,2.12212179]
[1728831235130,0.05360973,62340.0,62339.0,2.05808323]
[1728831235131,0.05460973,62340.0,62339.0,2.05808323]
[1728831236140,0.0004,62348.0,62339.0,2.12212179]
[1728831236443,0.0004,62348.0,62347.0,0.611016]
[1728831237441,0.0004,62348.0,62347.0,1.69719254]
[1728831237645,0.0004,62348.0,62347.0,1.09719254]
[1728831237841,0.0004,62348.0,62347.0,0.6160325]
[1728831238143,0.080218,62346.0,62345.0,0.080217]
[1728831238333,0.080218,62346.0,62345.0,0.08523372]
[1728831238334,0.080618,62346.0,62345.0,0.08523372]
[1728831238531,0.080618,62346.0,62345.0,0.080217]
[1728831239034,0.0004,62346.0,62345.0,0.080217]
[1728831239239,0.0004,62346.0,62345.0,1.69723378]
[1728831239435,0.0004,62346.0,62345.0,1.52723378]
[1728831240446,0.0004,62346.0,62345.0,0.56643378]
[1728831240638,0.0024,62346.0,62345.0,0.56643378]
[1728831240942,0.0024,62346.0,62345.0,1.522217]
[1728831241149,0.0024,62346.0,62345.0,1.52723365]
[1728831242639,0.0024,62346.0,62345.0,0.92723365]
[1728831243340,0.0024,62346.0,62345.0,0.922217]
[1728831244350,0.0024,62346.0,62345.0,0.92723354]
[1728831244645,0.0024,62346.0,62345.0,1.09723354]
[1728831244945,0.0024,62346.0,62345.0,1.69723354]
[1728831245645,0.0024,62346.0,62345.0,1.692217]
[1728831245845,0.0024,62346.0,62345.0,1.522217]
[1728831246050,0.0024,62346.0,62345.0,1.52723336]
[1728831246443,0.0024,62346.0,62345.0,1.69723336]
[1728831247545,0.0024,62346.0,62345.0,1.52723336]
[1728831247854,0.0024,62346.0,62345.0,1.69723336]
[1728831248246,0.0024,62346.0,62345.0,1.52723336]
[1728831248442,0.0024,62346.0,62345.0,1.69723336]
[1728831249153,0.0024,62346.0,62345.0,1.692217]
[1728831249455,0.0024,62346.0,62345.0,1.69723334]
[1728831249651,3.0224,62346.0,62345.0,1.33643334]
[1728831249952,3.0224,62346.0,62345.0,1.69723334]
[1728831250148,3.0224,62346.0,62345.0,1.692217]
[1728831250345,3.0224,62346.0,62345.0,1.092217]
[1728831250656,3.0224,62346.0,62345.0,0.44603335]
[1728831250847,3.0224,62346.0,62345.0,0.441017]
[1728831252455,3.102617,62346.0,62345.0,0.441017]
[1728831252758,3.0224,62346.0,62345.0,0.441017]
[1728831254145,3.102617,62346.0,62343.0,0.00084]
[1728831254454,0.0004,62344.0,62337.0,0.17]
[1728831254640,0.080627,62338.0,62337.0,0.17]
[1728831255052,0.080627,62338.0,62337.0,0.17817378]
[1728831255854,0.080627,62338.0,62337.0,0.25840278]
[1728831256853,0.0004,62338.0,62337.0,0.25840278]
[1728831257055,0.080627,62338.0,62337.0,0.25840278]
[1728831257554,0.081627,62338.0,62337.0,0.082229]
[1728831259556,0.0014,62338.0,62336.0,0.0004]
[1728831259749,0.080629,62337.0,62336.0,0.0004]
[1728831259947,0.080231,62335.0,62334.0,0.00280583]
[1728831260148,0.080631,62335.0,62334.0,0.00280583]
[1728831260566,0.0004,62335.0,62328.0,0.3608]
[1728831260745,0.080639,62329.0,62328.0,0.3608]
[1728831260946,0.080639,62329.0,62327.0,0.17]
[1728831260947,0.0004,62329.0,62327.0,0.17]
[1728831261150,0.080242,62327.0,62325.0,0.080243]
[1728831261350,0.080642,62327.0,62325.0,0.080243]
[1728831261856,0.080244,62325.0,62324.0,0.17]
[1728831262046,0.080644,62325.0,62324.0,0.17]
[1728831262240,0.080644,62325.0,62322.0,0.080647]
[1728831262241,0.080247,62323.0,62322.0,0.080647]
[1728831262443,0.080647,62323.0,62322.0,0.080647]
[1728831262642,0.080647,62323.0,62322.0,0.0004]
[1728831264644,0.080647,62323.0,62322.0,0.080648]
[1728831265051,0.080647,62323.0,62322.0,0.0004]
[1728831265447,0.081647,62323.0,62322.0,0.0004]
[1728831265647,0.081647,62323.0,62322.0,0.080648]
[1728831268556,0.0014,62323.0,62322.0,0.080648]
[1728831271155,0.0004,62325.0,62324.0,0.080245]
[1728831271351,0.0004,62325.0,62324.0,0.250245]
[1728831272148,0.0004,62325.0,62324.0,0.25526302]
[1728831272352,0.0004,62325.0,62324.0,0.250245]
[1728831272663,0.0014,62325.0,62324.0,0.250245]
[1728831275164,0.0014,62325.0,62324.0,0.080245]
[1728831275363,0.0014,62325.0,62324.0,0.250245]
[1728831276354,0.0014,62325.0,62324.0,0.080245]
[1728831276558,0.442444,62325.0,62324.0,0.080245]
[1728831276972,0.3622,62325.0,62322.0,0.0004]
[1728831277164,0.080647,62323.0,62322.0,0.0004]
[1728831277575,0.080647,62323.0,62322.0,0.080648]
[1728831277773,0.250647,62323.0,62322.0,0.0004]
[1728831278282,0.48136,62322.0,62307.0,0.080267]
[1728831278462,0.1704,62308.0,62307.0,0.080267]
[1728831278664,0.6004,62308.0,62307.0,0.080267]
[1728831278872,0.3608,62308.0,62307.0,0.0004]
[1728831279167,1.522546,62308.0,62307.0,0.0004]
[1728831279567,1.692546,62308.0,62307.0,0.0004]
[1728831280166,1.693546,62308.0,62307.0,0.081667]
[1728831280873,1.693546,62308.0,62307.0,0.0014]
[1728831282476,0.080279,62298.0,62297.0,0.17]
[1728831282666,0.441079,62298.0,62295.0,0.080282]
[1728831282864,0.441079,62298.0,62289.0,0.06403856]
[1728831282865,0.1704,62296.0,62289.0,0.06403856]
[1728831283092,0.5312,62290.0,62283.0,0.06644652]
[1728831283400,0.5312,62290.0,62283.0,0.00240796]
[1728831283401,0.441497,62284.0,62283.0,0.00240796]
[1728831283695,0.441497,62284.0,62283.0,0.00742961]
[1728831283895,1.523177,62284.0,62283.0,0.00240796]
[1728831284293,1.44288,62284.0,62277.0,0.080305]
[1728831284502,0.3608,62278.0,62277.0,0.080306]
[1728831284695,0.080306,62277.0,62276.0,0.17]
[1728831284995,0.080706,62277.0,62276.0,0.17]
[1728831285397,0.0004,62277.0,62276.0,0.17]
[1728831285588,0.0004,62277.0,62276.0,0.250307]
[1728831286002,1.25212,62277.0,62260.0,0.06773856]
[1728831286190,0.080312,62273.0,62268.0,0.080317]
[1728831286395,0.3608,62269.0,62268.0,0.080317]
[1728831287203,0.3608,62269.0,62268.0,0.250317]
[1728831287897,0.080321,62266.0,62261.0,0.17]
[1728831288096,0.080321,62266.0,62261.0,0.250927]
[1728831288097,0.3608,62262.0,62261.0,0.250927]
[1728831288400,0.31297819,62262.0,62261.0,0.250927]
[1728831288799,0.0004,62262.0,62261.0,0.250927]
[1728831289193,0.0004,62262.0,62261.0,0.080927]
[1728831289398,0.0004,62262.0,62261.0,0.250927]
[1728831289599,0.0004,62262.0,62261.0,0.1706]
[1728831289903,0.0004,62262.0,62261.0,0.0006]
[1728831290102,0.0004,62262.0,62261.0,0.080927]
[1728831290396,0.0014,62262.0,62261.0,0.080327]
[1728831290997,0.081725,62262.0,62259.0,0.17]
[1728831291305,0.0004,62260.0,62259.0,0.250929]
[1728831292301,0.0037,62271.0,62261.0,0.0004]
[1728831292302,0.3608,62268.0,62261.0,0.0004]
[1728831292604,0.3608,62268.0,62267.0,0.250319]
[1728831292798,0.3608,62268.0,62267.0,0.250919]
[1728831293396,0.080322,62265.0,62262.0,0.080325]
[1728831293598,0.3612,62263.0,62262.0,0.080325]
[1728831293892,0.3612,62263.0,62262.0,0.080925]
[1728831294092,0.3612,62263.0,62262.0,0.213125]
[1728831294503,0.3602,62263.0,62262.0,0.213125]
[1728831294699,0.0004,62263.0,62262.0,0.213125]
[1728831296800,0.0014,62263.0,62262.0,0.226125]
[1728831301110,3.02,62269.0,62268.0,0.080318]
[1728831301111,2.9631493,62269.0,62268.0,0.080318]
[1728831301301,2.9631493,62269.0,62268.0,0.850318]
[1728831301502,2.9631493,62269.0,62268.0,1.332118]
[1728831301902,2.9631493,62269.0,62268.0,1.3371402]
[1728831302109,2.9631493,62269.0,62268.0,1.40066922]
[1728831302306,2.9631493,62269.0,62268.0,0.31886922]
[1728831302508,2.9631493,62269.0,62268.0,0.2553402]
[1728831304009,2.9631493,62269.0,62268.0,0.32999896]
[1728831304010,2.9641493,62269.0,62268.0,0.32999896]
[1728831304212,2.9641493,62269.0,62268.0,0.261318]
[1728831305014,2.9641493,62269.0,62268.0,0.32497676]
[1728831305208,2.9641493,62269.0,62268.0,0.261318]
[1728831306415,2.9641493,62269.0,62268.0,0.26634034]
[1728831306905,2.9641493,62269.0,62268.0,0.54044163]
[1728831307311,2.9079007,62269.0,62268.0,1.62224163]
[1728831307513,2.9079007,62269.0,62268.0,1.45224163]
[1728831307815,2.9079007,62269.0,62268.0,1.02224163]
[1728831308118,2.9079007,62269.0,62268.0,1.6222416]
[1728831308315,2.85928766,62269.0,62268.0,1.6222416]
[1728831308622,2.85928766,62269.0,62268.0,1.62224148]
[1728831309021,2.85928766,62269.0,62268.0,1.44721929]
[1728831309210,2.85928766,62269.0,62268.0,1.62224148]
[1728831309605,2.85928766,62269.0,62268.0,1.60224148]
[1728831309810,2.85928766,62269.0,62268.0,1.73359013]
[1728831310110,2.85928766,62269.0,62268.0,1.72555499]
[1728831310111,2.43774566,62269.0,62268.0,1.72555499]
[1728831310305,2.26154766,62269.0,62268.0,1.73358994]
[1728831310510,2.07117466,62269.0,62268.0,1.73358994]
[1728831311311,1.99082571,62269.0,62268.0,1.73358987]
[1728831311616,1.90483971,62269.0,62268.0,1.73358987]
[1728831311805,1.25762617,62269.0,62268.0,1.87683092]
[1728831312010,0.60167551,62269.0,62268.0,2.35329173]
[1728831312320,0.0111,62288.0,62287.0,0.080293]
[1728831312528,0.0004,62290.0,62289.0,0.080291]
[1728831312820,0.0004,62290.0,62289.0,0.28046084]
[1728831313320,0.0004,62290.0,62289.0,0.18439229]
[1728831314118,0.0004,62290.0,62289.0,0.0800347]
[1728831314312,0.0004,62290.0,62288.0,0.08002807]
[1728831314512,0.080292,62288.0,62287.0,0.08002807]
[1728831314709,0.3608,62288.0,62285.0,0.33032407]
[1728831314910,0.441492,62288.0,62286.0,0.00502134]
[1728831315119,0.441492,62288.0,62287.0,0.00502134]
[1728831315311,0.3612,62288.0,62284.0,0.08002807]
[1728831315516,0.441492,62288.0,62287.0,0.06401858]
[1728831316217,0.080293,62287.0,62286.0,0.06401858]
[1728831316617,0.080693,62287.0,62286.0,0.06401858]
[1728831317214,0.080294,62286.0,62285.0,0.06401858]
[1728831317413,0.080694,62286.0,62285.0,0.06401858]
[1728831319115,0.0803,62282.0,62281.0,0.08002807]
[1728831319319,0.0803,62282.0,62276.0,0.0004]
[1728831319320,0.080305,62278.0,62276.0,0.0004]
[1728831319519,0.36260001,62282.0,62277.0,0.08003454]
[1728831319717,0.3608,62279.0,62276.0,0.1704]
[1728831320024,0.080706,62277.0,62276.0,0.1704]
[1728831321717,0.0004,62277.0,62276.0,0.25572925]
[1728831322018,0.0004,62277.0,62276.0,0.26472925]
[1728831323013,0.0004,62277.0,62276.0,0.2727643]
[1728831323923,0.0004,62277.0,62276.0,0.620507]
[1728831324123,0.0004,62277.0,62276.0,0.62854185]
[1728831324334,0.0004,62277.0,62276.0,0.63958529]
[1728831324522,0.0004,62277.0,62276.0,0.64761994]
[1728831324823,0.0004,62277.0,62276.0,0.63958509]
[1728831325015,0.0004,62277.0,62276.0,0.27878509]
[1728831326224,0.0004,62277.0,62276.0,0.28834301]
[1728831326622,0.0004,62282.0,62281.0,0.080301]
[1728831326817,0.0004,62282.0,62281.0,0.74503731]
[1728831327014,0.0004,62282.0,62281.0,0.26335731]
[1728831327618,0.0004,62282.0,62281.0,0.34344569]
[1728831327815,0.0004,62282.0,62281.0,0.33842352]
[1728831328014,0.0004,62282.0,62281.0,0.09835648]
[1728831328431,0.0004,62282.0,62281.0,0.26835648]
[1728831329327,0.0004,62282.0,62281.0,0.36902597]
[1728831332832,0.0004,62288.0,62281.0,0.36902597]
[1728831332833,0.00144,62291.0,62285.0,0.080296]
[1728831333019,0.0111,62306.0,62290.0,0.781089]
[1728831333225,0.1476,62309.0,62295.0,0.611083]
[1728831333422,0.1476,62309.0,62295.0,1.80787436]
[1728831334530,0.1476,62309.0,62295.0,1.90384754]
[1728831334725,0.1476,62309.0,62295.0,0.72631436]
[1728831335122,0.1476,62309.0,62295.0,0.73528512]
[1728831335330,0.1476,62309.0,62295.0,0.74928512]
[1728831335724,0.1476,62309.0,62297.0,0.08028]
[1728831335923,0.1476,62309.0,62297.0,0.20448212]
[1728831336225,0.1476,62309.0,62297.0,0.19492719]
[1728831336433,0.1476,62309.0,62297.0,0.0933326]
[1728831337132,0.1476,62309.0,62297.0,0.08530134]
[1728831337328,0.1476,62309.0,62297.0,0.09481803]
[1728831337829,0.1476,62309.0,62308.0,0.080266]
[1728831338017,0.1476,62309.0,62308.0,0.08528734]
[1728831338618,0.1476,62309.0,62308.0,0.080266]
[1728831338820,0.1476,62309.0,62308.0,0.08528542]
[1728831339327,0.1476,62309.0,62308.0,0.08728542]
[1728831340231,0.0705,62322.0,62319.0,0.080251]
[1728831340534,0.1466,62320.0,62319.0,0.080251]
[1728831340731,0.1466,62320.0,62319.0,0.250251]
[1728831340933,0.1466,62320.0,62319.0,0.25526966]
[1728831341834,0.226851,62320.0,62316.0,0.080256]
[1728831342036,0.226851,62320.0,62317.0,0.00501882]
[1728831342037,0.080252,62319.0,62317.0,0.00501882]
[1728831342228,0.080252,62319.0,62316.0,0.250256]
[1728831342428,0.080252,62319.0,62317.0,0.00501888]
[1728831342631,0.080252,62319.0,62316.0,0.250256]
[1728831342830,0.080252,62319.0,62317.0,0.00501888]
[1728831343030,0.080252,62319.0,62316.0,0.250256]
[1728831343226,0.0004,62317.0,62316.0,0.17]
[1728831343431,0.0004,62317.0,62316.0,0.25527491]
[1728831343632,0.0004,62317.0,62316.0,0.250256]
[1728831350542,0.0004,62317.0,62313.0,0.5308]
[1728831350732,0.080656,62317.0,62313.0,0.5308]
[1728831350938,0.080656,62317.0,62315.0,0.080256]
[1728831351440,0.080258,62315.0,62313.0,0.36164]
[1728831351633,0.0004,62314.0,62313.0,0.3608]
[1728831351936,0.0004,62314.0,62310.0,0.04793552]
[1728831352133,0.1704,62311.0,62307.0,0.04793552]
[1728831352344,0.1704,62311.0,62304.0,0.08027]
[1728831352345,0.080267,62307.0,62304.0,0.08027]
[1728831352546,0.0004,62305.0,62304.0,0.08027]
[1728831355335,0.0004,62305.0,62304.0,0.12820552]
[1728831355847,0.0004,62305.0,62304.0,0.30520552]
[1728831356045,0.0004,62305.0,62304.0,0.27520552]
[1728831358437,0.0004,62305.0,62304.0,0.22727]
[1728831360341,0.0004,62305.0,62304.0,0.27524594]
[1728831360942,0.0004,62305.0,62304.0,0.22727]
[1728831362147,0.0004,62305.0,62304.0,0.05727]
[1728831364352,0.0004,62305.0,62304.0,0.22727]
[1728831365348,0.0004,62305.0,62304.0,0.23228975]
[1728831365854,0.1704,62305.0,62304.0,0.06228975]
[1728831366047,0.25067,62305.0,62304.0,0.01201975]
[1728831366550,0.25067,62305.0,62304.0,0.01201983]
[1728831366753,0.25067,62305.0,62304.0,0.09193571]
[1728831367050,0.25067,62305.0,62304.0,0.01201982]
[1728831367256,0.080276,62300.0,62293.0,0.09597318]
[1728831367444,0.080289,62290.0,62288.0,0.0004]
[1728831367644,0.080289,62290.0,62289.0,0.00542084]
[1728831367645,0.441489,62290.0,62289.0,0.00542084]
[1728831368152,0.441489,62290.0,62289.0,0.0004]
[1728831368745,0.611489,62290.0,62289.0,0.0004]
[1728831369247,0.611489,62290.0,62289.0,0.00542132]
[1728831369445,0.611489,62290.0,62289.0,0.0004]
[1728831369848,0.611489,62290.0,62289.0,0.04841081]